fUST/lending_fUST_20240226
["ID","MTS","AMOUNT","RATE_DAILY","PERIOD"]
[315201172,1708929042221,-500.0,0.00019452,2]
[315201173,1708929042230,-500.0,0.00019452,2]
[315201174,1708929042240,-500.0,0.00019452,2]
[315201175,1708929042249,-500.0,0.00019452,2]
[315201176,1708929042258,-500.0,0.00019452,2]
[315201177,1708929042267,-500.0,0.00019452,2]
[315201178,1708929042276,-1733.05,0.00019452,2]
[315201179,1708929042285,-500.0,0.00019452,2]
[315201180,1708929042294,-500.0,0.00019452,2]
[315201181,1708929042303,-500.0,0.00019452,2]
[315201182,1708929042312,-478.11316382,0.00019452,2]
[315201183,1708929042321,-500.0,0.00019452,2]
[315201184,1708929042330,-500.0,0.00019452,2]
[315201185,1708929042339,-500.0,0.00019452,2]
[315201186,1708929042349,-500.0,0.00019452,2]
[315201187,1708929042358,-500.0,0.00019452,2]
[315201188,1708929042367,-500.0,0.00019452,2]
[315201189,1708929042377,-500.0,0.00019452,2]
[315201190,1708929042387,-702.06,0.00019452,2]
[315201191,1708929042395,-500.0,0.00019452,2]
[315201192,1708929042405,-500.0,0.00019452,2]
[315201193,1708929042414,-500.0,0.00019452,2]
[315201194,1708929042423,-500.0,0.00019452,2]
[315201195,1708929042432,-500.0,0.00019452,2]
[315201196,1708929042441,-500.0,0.00019452,2]
[315201197,1708929042450,-977.29,0.00019452,2]
[315201198,1708929042460,-500.0,0.00019452,2]
[315201199,1708929042469,-2940.52,0.00019452,2]
[315201200,1708929042478,-500.0,0.00019452,2]
[315201201,1708929042488,-732.84,0.00019452,2]
[315201203,1708929042497,-500.0,0.00019452,2]
[315201204,1708929042506,-1189.16,0.00019452,2]
[315201205,1708929042515,-500.85128667,0.00019452,2]
[315201206,1708929042525,-500.0,0.00019452,2]
[315201207,1708929042534,-500.0,0.00019452,2]
[315201208,1708929042543,-2045.7,0.00019452,2]
[315201209,1708929042553,-500.0,0.00019452,2]
[315201210,1708929042562,-500.0,0.00019452,2]
[315201211,1708929042571,-500.0,0.00019452,2]
[315201212,1708929042580,-500.0,0.00019452,2]
[315201213,1708929042589,-500.0,0.00019452,2]
[315201214,1708929042598,-500.0,0.00019452,2]
[315201215,1708929042606,-1354.39,0.00019452,2]
[315201216,1708929042615,-238.73773781,0.00019452,2]
[315201217,1708929042624,-500.0,0.00019452,2]
[315201218,1708929042633,-447.40547594,0.00019452,2]
[315201219,1708929042642,-2685.56,0.00019452,2]
[315201220,1708929042652,-10264.98,0.00019452,2]
[315201221,1708929042661,-500.0,0.00019452,2]
[315201222,1708929042670,-833.58,0.00019452,2]
[315201223,1708929042680,-500.0,0.00019452,2]
[315201224,1708929042689,-500.0,0.00019452,2]
[315201225,1708929042698,-2541.32,0.00019452,2]
[315201226,1708929042707,-3924.44,0.00019452,2]
[315201227,1708929042717,-1850.78,0.00019452,2]
[315201228,1708929042726,-1000.0,0.00019452,2]
[315201229,1708929042736,-500.0,0.00019452,2]
[315201230,1708929042745,-500.0,0.00019452,2]
[315201231,1708929042754,-501.7897385,0.00019452,2]
[315201232,1708929042763,-442.24473459,0.00019452,2]
[315201233,1708929042773,-500.0,0.00019452,2]
[315201234,1708929042782,-500.0,0.00019452,2]
[315201235,1708929042791,-500.0,0.00019452,2]
[315201236,1708929042800,-249.10033961,0.00019452,2]
[315201237,1708929042809,-500.0,0.00019452,2]
[315201238,1708929042818,-500.0,0.00019452,2]
[315201239,1708929042828,-500.0,0.00019452,2]
[315201240,1708929042838,-502.27989563,0.00019452,2]
[315201241,1708929042847,-500.0,0.00019452,2]
[315201242,1708929042856,-500.0,0.00019452,2]
[315201243,1708929042865,-581.87051322,0.00019452,2]
[315201244,1708929042874,-500.0,0.00019452,2]
[315201245,1708929042883,-500.0,0.00019452,2]
[315201246,1708929042892,-500.0,0.00019452,2]
[315201247,1708929042902,-1990.57,0.00019452,2]
[315201248,1708929042911,-2094.19,0.00019452,2]
[315201249,1708929042920,-500.0,0.00019452,2]
[315201250,1708929042930,-500.0,0.00019452,2]
[315201251,1708929042939,-500.0,0.00019452,2]
[315201252,1708929042949,-500.0,0.00019452,2]
[315201253,1708929042958,-500.0,0.00019452,2]
[315201254,1708929042967,-500.0,0.00019452,2]
[315201255,1708929042976,-500.0,0.00019452,2]
[315201256,1708929042985,-500.0,0.00019452,2]
[315201257,1708929042994,-500.0,0.00019452,2]
[315201258,1708929043003,-500.0,0.00019452,2]
[315201259,1708929043012,-21483.05,0.00019452,2]
[315201260,1708929043021,-1241.18,0.00019452,2]
[315201261,1708929043030,-500.0,0.00019452,2]
[315201263,1708929043039,-500.0,0.00019452,2]
[315201264,1708929043048,-500.0,0.00019452,2]
[315201266,1708929043057,-500.0,0.00019452,2]
[315201267,1708929043066,-500.0,0.00019452,2]
[315201268,1708929043075,-2127.63,0.00019452,2]
[315201269,1708929043084,-501.32910414,0.00019452,2]
[315201270,1708929043093,-500.0,0.00019452,2]
[315201271,1708929043102,-631.36,0.00019452,2]
[315201272,1708929043110,-500.0,0.00019452,2]
[315201273,1708929043119,-500.0,0.00019452,2]
[315201274,1708929043129,-500.0,0.00019452,2]
[315201275,1708929043139,-500.0,0.00019452,2]
[315201276,1708929043152,-500.0,0.00019452,2]
[315201277,1708929043161,-500.0,0.00019452,2]
[315201278,1708929043173,-500.0,0.00019452,2]
[315201280,1708929043182,-500.0,0.00019452,2]
[315201281,1708929043192,-500.0,0.00019452,2]
[315201282,1708929043202,-500.0,0.00019452,2]
[315201283,1708929043211,-509.9265336,0.00019452,2]
[315201284,1708929043221,-502.01865313,0.00019452,2]
[315201285,1708929043231,-500.0,0.00019452,2]
[315201286,1708929043241,-500.0,0.00019452,2]
[315201287,1708929043250,-1632.51,0.00019452,2]
[315201288,1708929043259,-500.0,0.00019452,2]
[315201289,1708929043269,-405.80118565,0.00019452,2]
[315201290,1708929043278,-3327.36,0.00019452,2]
[315201291,1708929043288,-4168.04,0.00019452,2]
[315201293,1708929043297,-500.0,0.00019452,2]
[315201295,1708929043306,-500.0,0.00019452,2]
[315201297,1708929043316,-7556.79,0.00019452,2]
[315201300,1708929043325,-500.0,0.00019452,2]
[315201302,1708929043334,-500.0,0.00019452,2]
[315201304,1708929043343,-500.0,0.00019452,2]
[315201306,1708929043352,-1509.28,0.00019452,2]
[315201308,1708929043361,-500.0,0.00019452,2]
[315201310,1708929043370,-500.0,0.00019452,2]
[315201312,1708929043379,-500.0,0.00019452,2]
[315201314,1708929043388,-21511.25,0.00019452,2]
[315201316,1708929043398,-501.82744386,0.00019452,2]
[315201318,1708929043407,-500.0,0.00019452,2]
[315201320,1708929043417,-1713.03,0.00019452,2]
[315201322,1708929043426,-500.0,0.00019452,2]
[315201324,1708929043436,-2879.7,0.00019452,2]
[315201326,1708929043445,-503.89798039,0.00019452,2]
[315201328,1708929043454,-500.0,0.00019452,2]
[315201330,1708929043464,-640.38620748,0.00019452,2]
[315201332,1708929043473,-740.45,0.00019452,2]
[315201334,1708929043482,-500.0,0.00019452,2]
[315201336,1708929043491,-811.01,0.00019452,2]
[315201338,1708929043500,-500.0,0.00019452,2]
[315201340,1708929043511,-2388.75,0.00019452,2]
[315201342,1708929043520,-7330.41372259,0.00019473,2]
[315201344,1708929043529,-182.85476532,0.00019476,2]
[315201346,1708929043538,-401.1652708,0.00019479,2]
[315201348,1708929043548,-182.85476532,0.0001948,2]
[315201350,1708929043557,-7330.41372259,0.00019487,2]
[315201352,1708929043568,-182.85476532,0.00019494,2]
[315201354,1708929043577,-7330.41372259,0.00019499,2]
[315201356,1708929043587,-153.0,0.000195,2]
[315201358,1708929043597,-3232.05010345,0.00019626,2]
[315201360,1708929043606,-166.666666,0.00019627,2]
[315201362,1708929043616,-5529.96122929,0.000197,2]
[315201364,1708929043626,-5529.96122929,0.000197,2]
[315201366,1708929043635,-5529.96122929,0.000197,2]
[315201368,1708929043645,-500.0,0.00019725,2]
[315201370,1708929043655,-500.0,0.00019725,2]
[315201372,1708929043664,-500.0,0.00019725,2]
[315201374,1708929043674,-1606.41,0.00019726,2]
[315201376,1708929043683,-500.0,0.00019726,2]
[315201378,1708929043692,-500.0,0.00019726,2]
[315201380,1708929043701,-390.70436853,0.00019726,2]
[315201382,1708929043711,-508.64002911,0.00019726,2]
[315201384,1708929043720,-500.0,0.00019726,2]
[315201386,1708929043729,-500.0,0.00019726,2]
[315201388,1708929043738,-567.74,0.00019726,2]
[315201390,1708929043747,-450.65957018,0.00019726,2]
[315201392,1708929043757,-500.0,0.00019726,2]
[315201394,1708929043766,-557.78269521,0.00019726,2]
[315201396,1708929043776,-500.0,0.00019726,2]
[315201398,1708929043785,-500.0,0.00019726,2]
[315201400,1708929043793,-500.0,0.00019726,2]
[315201402,1708929043802,-610.38,0.00019726,2]
[315201404,1708929043811,-411.87418666,0.00019726,2]
[315201406,1708929043821,-1400.55,0.00019726,2]
[315201408,1708929043830,-773.11,0.00019726,2]
[315201410,1708929043839,-500.0,0.00019726,2]
[315201412,1708929043848,-500.0,0.00019726,2]
[315201413,1708929043861,-500.0,0.00019726,2]
[315201415,1708929043870,-500.0,0.00019726,2]
[315201418,1708929043879,-500.0,0.00019726,2]
[315201420,1708929043889,-500.0,0.00019726,2]
[315201422,1708929043899,-500.0,0.00019726,2]
[315201424,1708929043908,-2159.94,0.00019726,2]
[315201426,1708929043917,-500.0,0.00019726,2]
[315201428,1708929043927,-500.0,0.00019726,2]
[315201430,1708929043936,-500.0,0.00019726,2]
[315201432,1708929043945,-500.0,0.00019726,2]
[315201434,1708929043955,-500.0,0.00019726,2]
[315201436,1708929043964,-1733.05,0.00019726,2]
[315201438,1708929043973,-500.0,0.00019726,2]
[315201439,1708929043982,-501.29954357,0.00019726,2]
[315201441,1708929043992,-500.0,0.00019726,2]
[315201442,1708929044001,-500.0,0.00019726,2]
[315201443,1708929044011,-500.0,0.00019726,2]
[315201444,1708929044020,-500.0,0.00019726,2]
[315201445,1708929044029,-502.65712732,0.00019726,2]
[315201446,1708929044038,-505.95058571,0.00019726,2]
[315201447,1708929044048,-500.0,0.00019726,2]
[315201448,1708929044057,-646.85521638,0.00019726,2]
[315201449,1708929044159,-702.06,0.00019726,2]
[315201450,1708929044168,-501.72333826,0.00019726,2]
[315201451,1708929044177,-500.0,0.00019726,2]
[315201452,1708929044186,-500.0,0.00019726,2]
[315201453,1708929044195,-500.0,0.00019726,2]
[315201454,1708929044205,-500.0,0.00019726,2]
[315201455,1708929044214,-977.29,0.00019726,2]
[315201456,1708929044224,-500.0,0.00019726,2]
[315201457,1708929044233,-2940.52,0.00019726,2]
[315201458,1708929044243,-500.0,0.00019726,2]
[315201459,1708929044252,-732.84,0.00019726,2]
[315201460,1708929044261,-1189.16,0.00019726,2]
[315201461,1708929044270,-500.0,0.00019726,2]
[315201462,1708929044279,-500.0,0.00019726,2]
[315201463,1708929044288,-2045.7,0.00019726,2]
[315201464,1708929044297,-500.0,0.00019726,2]
[315201465,1708929044306,-371.5006517,0.00019726,2]
[315201466,1708929044316,-500.0,0.00019726,2]
[315201467,1708929044325,-619.10188517,0.00019726,2]
[315201468,1708929044333,-500.0,0.00019726,2]
[315201469,1708929044342,-1354.39,0.00019726,2]
[315201470,1708929044351,-500.0,0.00019726,2]
[315201471,1708929044360,-2685.56,0.00019726,2]
[315201472,1708929044369,-10264.98,0.00019726,2]
[315201473,1708929044378,-833.58,0.00019726,2]
[315201474,1708929044388,-500.0,0.00019726,2]
[315201475,1708929044397,-2541.32,0.00019726,2]
[315201476,1708929044406,-3924.44,0.00019726,2]
[315201477,1708929044414,-1850.78,0.00019726,2]
[315201478,1708929044425,-1000.0,0.00019726,2]
[315201479,1708929044433,-380.88443286,0.00019726,2]
[315201480,1708929044442,-500.0,0.00019726,2]
[315201481,1708929044451,-500.0,0.00019726,2]
[315201482,1708929044460,-500.0,0.00019726,2]
[315201483,1708929044469,-487.01483259,0.00019726,2]
[315201484,1708929044478,-500.0,0.00019726,2]
[315201485,1708929044486,-500.0,0.00019726,2]
[315201486,1708929044495,-500.0,0.00019726,2]
[315201487,1708929044504,-500.0,0.00019726,2]
[315201488,1708929044513,-500.81546176,0.00019726,2]
[315201489,1708929044522,-500.0,0.00019726,2]
[315201490,1708929044531,-500.0,0.00019726,2]
[315201491,1708929044539,-1990.57,0.00019726,2]
[315201492,1708929044548,-2094.19,0.00019726,2]
[315201493,1708929044558,-500.0,0.00019726,2]
[315201494,1708929044567,-500.0,0.00019726,2]
[315201495,1708929044576,-500.0,0.00019726,2]
[315201496,1708929044586,-500.0,0.00019726,2]
[315201497,1708929044596,-500.0,0.00019726,2]
[315201498,1708929044605,-238.35007482,0.00019726,2]
[315201499,1708929044614,-500.0,0.00019726,2]
[315201500,1708929044623,-500.0,0.00019726,2]
[315201501,1708929044633,-500.0,0.00019726,2]
[315201502,1708929044642,-500.0,0.00019726,2]
[315201503,1708929044651,-21483.05,0.00019726,2]
[315201504,1708929044660,-1241.18,0.00019726,2]
[315201505,1708929044669,-436.52101816,0.00019726,2]
[315201506,1708929044678,-500.0,0.00019726,2]
[315201507,1708929044687,-500.0,0.00019726,2]
[315201508,1708929044697,-503.26279382,0.00019726,2]
[315201509,1708929044705,-501.70449876,0.00019726,2]
[315201510,1708929044715,-2127.63,0.00019726,2]
[315201511,1708929044724,-507.00886275,0.00019726,2]
[315201512,1708929044733,-631.36,0.00019726,2]
[315201513,1708929044742,-500.0,0.00019726,2]
[315201514,1708929044751,-500.0,0.00019726,2]
[315201515,1708929044760,-201.81516256,0.00019726,2]
[315201516,1708929044769,-500.0,0.00019726,2]
[315201517,1708929044778,-539.47583065,0.00019726,2]
[315201518,1708929044787,-500.0,0.00019726,2]
[315201519,1708929044797,-500.0,0.00019726,2]
[315201520,1708929044806,-500.0,0.00019726,2]
[315201521,1708929044815,-506.01947048,0.00019726,2]
[315201522,1708929044824,-500.0,0.00019726,2]
[315201523,1708929044833,-500.0,0.00019726,2]
[315201524,1708929044842,-1632.51,0.00019726,2]
[315201525,1708929044852,-500.0,0.00019726,2]
[315201526,1708929044861,-3327.36,0.00019726,2]
[315201527,1708929044870,-4168.04,0.00019726,2]
[315201528,1708929044879,-502.11011131,0.00019726,2]
[315201529,1708929044889,-502.36151926,0.00019726,2]
[315201530,1708929044898,-7556.79,0.00019726,2]
[315201531,1708929044907,-185.27418586,0.00019726,2]
[315201532,1708929044916,-500.0,0.00019726,2]
[315201533,1708929044925,-1509.28,0.00019726,2]
[315201534,1708929044934,-502.15505867,0.00019726,2]
[315201535,1708929044943,-500.0,0.00019726,2]
[315201536,1708929044953,-500.0,0.00019726,2]
[315201537,1708929044962,-21511.25,0.00019726,2]
[315201538,1708929044970,-500.0,0.00019726,2]
[315201539,1708929044979,-1713.03,0.00019726,2]
[315201540,1708929044989,-500.0,0.00019726,2]
[315201541,1708929044998,-2879.7,0.00019726,2]
[315201542,1708929045007,-500.0,0.00019726,2]
[315201543,1708929045017,-740.45,0.00019726,2]
[315201544,1708929045026,-811.01,0.00019726,2]
[315201545,1708929045035,-500.0,0.00019726,2]
[315201546,1708929045044,-2388.75,0.00019726,2]
[315201547,1708929045053,-15567.50980686,0.0001973,2]
[315201548,1708929046005,-502.41746543,0.00019178,2]
[315201549,1708929046015,-4854.70287107,0.0001973,2]
[315201553,1708929046284,-649.66,0.00019178,2]
[315201555,1708929046294,-500.0,0.00019178,2]
[315201567,1708929046396,-500.0,0.00019452,2]
[315201569,1708929046408,-8746.81683898,0.0001973,2]
[315201571,1708929046417,-153.0,0.000198,2]
[315201573,1708929046426,-153.0,0.000198,2]
[315201575,1708929046435,-153.0,0.000198,2]
[315201577,1708929046444,-738.56241826,0.00019874,2]
[315201579,1708929046454,-6156.61822062,0.0001989,2]
[315201581,1708929046463,-153.0,0.000199,2]
[315201582,1708929046472,-240.7634129,0.000199,2]
[315201584,1708929046481,-5337.30879984,0.00019975,2]
[315201587,1708929046491,-155.01556378,0.00019999,2]
[315201588,1708929046500,-500.0,0.00019999,2]
[315201589,1708929046509,-500.0,0.00019999,2]
[315201591,1708929046518,-500.0,0.00019999,2]
[315201592,1708929046527,-7000.0,0.0002,2]
[315201593,1708929046537,-792.0,0.0002,2]
[315201594,1708929046546,-500.0,0.0002,2]
[315201595,1708929046556,-241.821721,0.0002,2]
[315201596,1708929046565,-500.0,0.0002,2]
[315201597,1708929046574,-500.0,0.0002,2]
[315201598,1708929046584,-567.74,0.0002,2]
[315201599,1708929046593,-500.0,0.0002,2]
[315201600,1708929046602,-500.0,0.0002,2]
[315201601,1708929046611,-500.0,0.0002,2]
[315201602,1708929046621,-610.38,0.0002,2]
[315201603,1708929046630,-1400.55,0.0002,2]
[315201604,1708929046639,-773.11,0.0002,2]
[315201605,1708929046648,-500.0,0.0002,2]
[315201606,1708929046658,-500.0,0.0002,2]
[315201607,1708929046667,-500.0,0.0002,2]
[315201608,1708929046676,-500.0,0.0002,2]
[315201609,1708929046686,-500.0,0.0002,2]
[315201610,1708929046695,-221.26217802,0.0002,2]
[315201611,1708929046704,-2159.94,0.0002,2]
[315201612,1708929046713,-502.37578705,0.0002,2]
[315201613,1708929046723,-500.0,0.0002,2]
[315201614,1708929046732,-500.0,0.0002,2]
[315201615,1708929046741,-500.0,0.0002,2]
[315201616,1708929046751,-1733.05,0.0002,2]
[315201617,1708929046760,-500.0,0.0002,2]
[315201618,1708929046769,-564.6803882,0.0002,2]
[315201619,1708929046779,-500.0,0.0002,2]
[315201620,1708929046788,-500.0,0.0002,2]
[315201621,1708929046797,-500.0,0.0002,2]
[315201622,1708929046806,-500.0,0.0002,2]
[315201623,1708929046815,-702.06,0.0002,2]
[315201624,1708929046824,-500.0,0.0002,2]
[315201625,1708929046833,-159.82677792,0.0002,2]
[315201626,1708929046843,-500.0,0.0002,2]
[315201627,1708929046852,-977.29,0.0002,2]
[315201628,1708929046861,-500.0,0.0002,2]
[315201629,1708929046870,-500.0,0.0002,2]
[315201630,1708929046879,-732.84,0.0002,2]
[315201631,1708929046888,-1189.16,0.0002,2]
[315201632,1708929046898,-500.0,0.0002,2]
[315201633,1708929046907,-500.0,0.0002,2]
[315201634,1708929046916,-2045.7,0.0002,2]
[315201635,1708929046925,-500.0,0.0002,2]
[315201636,1708929046935,-500.0,0.0002,2]
[315201637,1708929046944,-500.0,0.0002,2]
[315201638,1708929046954,-2685.56,0.0002,2]
[315201639,1708929046963,-10264.98,0.0002,2]
[315201640,1708929046972,-833.58,0.0002,2]
[315201641,1708929046981,-2541.32,0.0002,2]
[315201642,1708929046992,-3924.44,0.0002,2]
[315201643,1708929047002,-1850.78,0.0002,2]
[315201644,1708929047011,-544.61600458,0.0002,2]
[315201645,1708929047020,-500.0,0.0002,2]
[315201646,1708929047030,-500.0,0.0002,2]
[315201647,1708929047039,-500.0,0.0002,2]
[315201648,1708929047048,-500.0,0.0002,2]
[315201649,1708929047057,-500.0,0.0002,2]
[315201650,1708929047066,-347.36812482,0.0002,2]
[315201651,1708929047075,-259.9324532,0.0002,2]
[315201652,1708929047085,-1990.57,0.0002,2]
[315201653,1708929047094,-2094.19,0.0002,2]
[315201654,1708929047103,-500.0,0.0002,2]
[315201655,1708929047112,-500.0,0.0002,2]
[315201656,1708929047121,-53.35427212,0.0002,2]
[315201740,1708929636974,150.93962415,0.00021502,30]
[315201822,1708930232076,-487.04243643,0.0001754,2]
[315202389,1708930237735,-166.00676659,0.0001754,2]
[315202391,1708930237744,-154.93802479,0.00017541,2]
[315202393,1708930237753,-24900.0,0.00017543,2]
[315202395,1708930237762,-162.78742755,0.00017777,2]
[315202397,1708930237771,-250.0,0.00017878,2]
[315202399,1708930237780,-300.0,0.00017895,2]
[315202401,1708930237790,-160.3951783,0.00018168,2]
[315202403,1708930237799,-201.13960911,0.00019078,3]
[315202405,1708930237809,-161.70669459,0.00019078,2]
[315202407,1708930237818,-640.03091446,0.00019176,2]
[315202409,1708930237827,-154.93802479,0.00019177,2]
[315202411,1708930237836,-500.0,0.00019178,2]
[315202413,1708930237846,-500.0,0.00019178,2]
[315202415,1708930237855,-500.0,0.00019178,2]
[315202417,1708930237864,-411.87418666,0.00019178,2]
[315202419,1708930237873,-1351.04,0.00019178,2]
[315202420,1708930237882,-751.76,0.00019178,2]
[315202423,1708930237892,-500.35866528,0.00019178,2]
[315202425,1708930237901,-500.0,0.00019178,2]
[315202427,1708930237910,-500.0,0.00019178,2]
[315202428,1708930237919,-500.0,0.00019178,2]
[315202430,1708930237928,-510.36105547,0.00019178,2]
[315202445,1708930238057,-635.83996825,0.00019178,2]
[315202447,1708930238067,-1000.0,0.00019178,2]
[315202449,1708930238077,-501.52534223,0.00019178,2]
[315202451,1708930238087,-500.0,0.00019178,2]
[315202453,1708930238096,-500.0,0.00019178,2]
[315202455,1708930238105,-500.0,0.00019178,2]
[315202457,1708930238114,-500.0,0.00019178,2]
[315202459,1708930238123,-500.0,0.00019178,2]
[315202461,1708930238132,-500.0,0.00019178,2]
[315202463,1708930238141,-500.0,0.00019178,2]
[315202465,1708930238150,-500.0,0.00019178,2]
[315202467,1708930238159,-500.0,0.00019178,2]
[315202469,1708930238168,-500.0,0.00019178,2]
[315202471,1708930238177,-510.91242024,0.00019178,2]
[315202473,1708930238186,-593.05407186,0.00019178,2]
[315202475,1708930238195,-500.0,0.00019178,2]
[315202477,1708930238204,-500.0,0.00019178,2]
[315202479,1708930238213,-501.64126338,0.00019178,2]
[315202481,1708930238222,-562.37040375,0.00019178,2]
[315202483,1708930238231,-500.0,0.00019178,2]
[315202485,1708930238239,-501.56333098,0.00019178,2]
[315202487,1708930238248,-500.0,0.00019178,2]
[315202489,1708930238257,-500.0,0.00019178,2]
[315202491,1708930238266,-500.0,0.00019178,2]
[315202493,1708930238275,-635.14,0.00019178,2]
[315202495,1708930238284,-1641.65,0.00019178,2]
[315202497,1708930238293,-500.0,0.00019178,2]
[315202499,1708930238302,-580.35,0.00019178,2]
[315202501,1708930238311,-501.49146928,0.00019178,2]
[315202503,1708930238325,-500.0,0.00019178,2]
[315202505,1708930238335,-500.0,0.00019178,2]
[315202508,1708930238348,-500.0,0.00019178,2]
[315202510,1708930238357,-501.69596755,0.00019178,2]
[315202512,1708930238366,-500.0,0.00019178,2]
[315202514,1708930238375,-500.0,0.00019178,2]
[315202516,1708930238385,-500.0,0.00019178,2]
[315202518,1708930238394,-501.7897385,0.00019178,2]
[315202520,1708930238403,-500.0,0.00019178,2]
[315202521,1708930238412,-500.0,0.00019178,2]
[315202523,1708930238421,-502.27989563,0.00019178,2]
[315202525,1708930238430,-500.0,0.00019178,2]
[315202527,1708930238440,-500.0,0.00019178,2]
[315202529,1708930238449,-500.0,0.00019178,2]
[315202531,1708930238457,-500.0,0.00019178,2]
[315202533,1708930238466,-500.0,0.00019178,2]
[315202535,1708930238476,-500.0,0.00019178,2]
[315202537,1708930238487,-1218.7,0.00019178,2]
[315202539,1708930238496,-500.0,0.00019178,2]
[315202541,1708930238505,-500.0,0.00019178,2]
[315202543,1708930238513,-500.94944783,0.00019178,2]
[315202545,1708930238523,-500.0,0.00019178,2]
[315202547,1708930238533,-500.0,0.00019178,2]
[315202550,1708930238544,-500.0,0.00019178,2]
[315202552,1708930238554,-500.0,0.00019178,2]
[315202554,1708930238563,-500.0,0.00019178,2]
[315202556,1708930238573,-502.01865313,0.00019178,2]
[315202558,1708930238583,-2007.19,0.00019178,2]
[315202560,1708930238592,-500.0,0.00019178,2]
[315202561,1708930238601,-500.0,0.00019178,2]
[315202564,1708930238610,-21087.48,0.00019178,2]
[315202565,1708930238619,-500.0,0.00019178,2]
[315202567,1708930238628,-500.0,0.00019178,2]
[315202569,1708930238637,-500.0,0.00019178,2]
[315202571,1708930238647,-500.0,0.00019178,2]
[315202573,1708930238656,-500.0,0.00019178,2]
[315202575,1708930238665,-1627.98,0.00019178,2]
[315202577,1708930238675,-500.0,0.00019178,2]
[315202579,1708930238685,-500.0,0.00019178,2]
[315202581,1708930238694,-500.0,0.00019178,2]
[315202583,1708930238703,-500.0,0.00019178,2]
[315202585,1708930238712,-500.0,0.00019178,2]
[315202587,1708930238721,-500.0,0.00019178,2]
[315202589,1708930238730,-405.80118565,0.00019178,2]
[315202591,1708930238740,-500.0,0.00019178,2]
[315202593,1708930238749,-500.0,0.00019178,2]
[315202595,1708930238758,-500.0,0.00019178,2]
[315202597,1708930238767,-500.0,0.00019178,2]
[315202599,1708930238776,-500.0,0.00019178,2]
[315202601,1708930238785,-500.0,0.00019178,2]
[315202603,1708930238794,-509.9265336,0.00019178,2]
[315202605,1708930238803,-501.82744386,0.00019178,2]
[315202607,1708930238813,-1633.24,0.00019178,2]
[315202610,1708930238822,-500.0,0.00019178,2]
[315202611,1708930238831,-1655.57,0.00019178,2]
[315202613,1708930238840,-500.0,0.00019178,2]
[315202615,1708930238850,-500.0,0.00019178,2]
[315202618,1708930238859,-500.0,0.00019178,2]
[315202620,1708930238868,-503.89798039,0.00019178,2]
[315202622,1708930238879,-7553.11,0.00019178,2]
[315202624,1708930238888,-500.0,0.00019178,2]
[315202625,1708930238897,-500.0,0.00019178,2]
[315202627,1708930238906,-709.59,0.00019178,2]
[315202629,1708930238915,-500.0,0.00019178,2]
[315202631,1708930238925,-937.51,0.00019178,2]
[315202633,1708930238934,-826.54,0.00019178,2]
[315202635,1708930238943,-500.0,0.00019178,2]